[Event "Titled Tuesday Blitz February 21 Late 2023"]
[White "sissahungrychess"]
[Black "Vovk, Orest"]
[BlackFideId "14113490"]
[WhiteElo "2453"]
[BlackElo "2315"]
[Result "0-1"]
[Round "07"]
[TimeControl "180+2"]
[Date "2023.02.21"]
[WhiteClock "0:00:56"]
[BlackClock "0:00:50"]

1. c4 {[%clk 0:03:00]}  g5 {[%clk 0:02:56]} 2. d4 {[%clk 0:02:59]}  h6 {[%clk 0:02:55]} 3. e4 {[%clk 0:02:58]}  Bg7 {[%clk 0:02:56]} 4. Nc3 {[%clk 0:02:59]}  c5 {[%clk 0:02:56]} 5. Nge2 {[%clk 0:02:57]}  cxd4 {[%clk 0:02:54]} 6. Nxd4 {[%clk 0:02:57]}  Nc6 {[%clk 0:02:55]} 7. Nf5 {[%clk 0:02:53]}  Bxc3+ {[%clk 0:02:54]} 8. bxc3 {[%clk 0:02:54]}  d6 {[%clk 0:02:54]} 9. Ng7+ {[%clk 0:02:52]}  Kf8 {[%clk 0:02:53]} 10. Nh5 {[%clk 0:02:52]}  Qa5 {[%clk 0:02:52]} 11. Bd2 {[%clk 0:02:52]}  Qe5 {[%clk 0:02:47]} 12. Bd3 {[%clk 0:02:46]}  Nf6 {[%clk 0:02:40]} 13. Nxf6 {[%clk 0:02:43]}  Qxf6 {[%clk 0:02:40]} 14. O-O {[%clk 0:02:41]}  Ne5 {[%clk 0:02:40]} 15. Be2 {[%clk 0:02:41]}  g4 {[%clk 0:02:36]} 16. Be3 {[%clk 0:02:36]}  Rg8 {[%clk 0:02:35]} 17. Bd4 {[%clk 0:02:17]}  Qf4 {[%clk 0:02:20]} 18. Be3 {[%clk 0:02:04]}  Qxe4 {[%clk 0:02:04]} 19. Bxh6+ {[%clk 0:02:04]}  Ke8 {[%clk 0:02:03]} 20. c5 {[%clk 0:01:47]}  Nf3+ {[%clk 0:01:58]} 21. Kh1 {[%clk 0:01:19]}  Qh7 {[%clk 0:01:53]} 22. Bb5+ {[%clk 0:01:19]}  Kd8 {[%clk 0:01:47]} 23. cxd6 {[%clk 0:01:15]}  Qxh6 {[%clk 0:01:40]} 24. dxe7+ {[%clk 0:01:15]}  Kxe7 {[%clk 0:01:39]} 25. gxf3 {[%clk 0:01:15]}  Rh8 {[%clk 0:01:17]} 26. Re1+ {[%clk 0:01:15]}  Be6 {[%clk 0:00:57]} 27. Qd7+ {[%clk 0:01:14]}  Kf8 {[%clk 0:00:56]} 28. Qd6+ {[%clk 0:01:12]}  Kg7 {[%clk 0:00:56]} 29. fxg4 {[%clk 0:01:00]}  Bd5+ {[%clk 0:00:51]} 30. Kg1 {[%clk 0:00:56]}  Qxd6 {[%clk 0:00:50]} 0-1


[Site "https://www.chess.com"]

[Event "Titled Tuesday Blitz February 21 Late 2023"]
[White "Haszon, David"]
[Black "Yeritsyan, Hayk"]
[WhiteFideId "733610"]
[BlackFideId "13307320"]
[WhiteElo "2264"]
[BlackElo "2241"]
[Result "1/2-1/2"]
[Round "07"]
[TimeControl "180+2"]
[Date "2023.02.21"]
[WhiteClock "0:00:09"]
[BlackClock "0:00:04"]

1. e4 {[%clk 0:03:00]}  c6 {[%clk 0:02:59]} 2. d4 {[%clk 0:03:00]}  d5 {[%clk 0:02:59]} 3. e5 {[%clk 0:03:00]}  c5 {[%clk 0:02:59]} 4. dxc5 {[%clk 0:02:59]}  Nc6 {[%clk 0:03:00]} 5. Nf3 {[%clk 0:02:56]}  Bg4 {[%clk 0:02:59]} 6. a3 {[%clk 0:02:55]}  e6 {[%clk 0:02:58]} 7. b4 {[%clk 0:02:50]}  Bxf3 {[%clk 0:02:57]} 8. Qxf3 {[%clk 0:02:50]}  Nxe5 {[%clk 0:02:58]} 9. Qg3 {[%clk 0:02:50]}  Nc6 {[%clk 0:02:57]} 10. Bb2 {[%clk 0:02:50]}  Nf6 {[%clk 0:02:57]} 11. Nd2 {[%clk 0:02:44]}  g6 {[%clk 0:02:55]} 12. Bd3 {[%clk 0:01:59]}  Bg7 {[%clk 0:02:54]} 13. Rb1 {[%clk 0:01:54]}  O-O {[%clk 0:02:47]} 14. O-O {[%clk 0:01:54]}  Nh5 {[%clk 0:02:43]} 15. Qg4 {[%clk 0:01:41]}  Bxb2 {[%clk 0:02:41]} 16. Rxb2 {[%clk 0:01:42]}  Qf6 {[%clk 0:02:36]} 17. Rbb1 {[%clk 0:01:37]}  Ne5 {[%clk 0:02:33]} 18. Qh3 {[%clk 0:01:21]}  Nf4 {[%clk 0:02:28]} 19. Qe3 {[%clk 0:01:20]}  Qg5 {[%clk 0:02:23]} 20. g3 {[%clk 0:01:09]}  Nh3+ {[%clk 0:02:08]} 21. Kg2 {[%clk 0:01:09]}  Nxd3 {[%clk 0:01:57]} 22. cxd3 {[%clk 0:01:05]}  Qh5 {[%clk 0:01:39]} 23. Qf3 {[%clk 0:00:57]}  Qh6 {[%clk 0:01:20]} 24. Qe3 {[%clk 0:00:50]}  Qh5 {[%clk 0:01:14]} 25. Qf3 {[%clk 0:00:50]}  Qh6 {[%clk 0:01:13]} 26. Nb3 {[%clk 0:00:39]}  Ng5 {[%clk 0:01:01]} 27. Qe3 {[%clk 0:00:39]}  Qh3+ {[%clk 0:00:59]} 28. Kg1 {[%clk 0:00:39]}  h6 {[%clk 0:00:44]} 29. f4 {[%clk 0:00:37]}  Nh7 {[%clk 0:00:43]} 30. Nd4 {[%clk 0:00:36]}  Nf6 {[%clk 0:00:43]} 31. Nf3 {[%clk 0:00:30]}  Rac8 {[%clk 0:00:34]} 32. Qe2 {[%clk 0:00:28]}  b6 {[%clk 0:00:28]} 33. Rfc1 {[%clk 0:00:24]}  Rc7 {[%clk 0:00:19]} 34. Ne5 {[%clk 0:00:24]}  Rfc8 {[%clk 0:00:17]} 35. d4 {[%clk 0:00:21]}  Ne4 {[%clk 0:00:16]} 36. Qg2 {[%clk 0:00:18]}  Qxg2+ {[%clk 0:00:13]} 37. Kxg2 {[%clk 0:00:18]}  Kg7 {[%clk 0:00:13]} 38. Rb2 {[%clk 0:00:16]}  Nf6 {[%clk 0:00:11]} 39. Nd3 {[%clk 0:00:16]}  Ne4 {[%clk 0:00:11]} 40. Kf3 {[%clk 0:00:16]}  f5 {[%clk 0:00:11]} 41. Ke3 {[%clk 0:00:17]}  g5 {[%clk 0:00:12]} 42. Ne5 {[%clk 0:00:16]}  Kf6 {[%clk 0:00:11]} 43. h4 {[%clk 0:00:16]}  Nxg3 {[%clk 0:00:08]} 44. hxg5+ {[%clk 0:00:15]}  hxg5 {[%clk 0:00:09]} 45. Rh2 {[%clk 0:00:14]}  Ne4 {[%clk 0:00:06]} 46. Rh6+ {[%clk 0:00:14]}  Kg7 {[%clk 0:00:06]} 47. Rg6+ {[%clk 0:00:12]}  Kf8 {[%clk 0:00:07]} 48. Rh1 {[%clk 0:00:12]}  gxf4+ {[%clk 0:00:04]} 49. Kxf4 {[%clk 0:00:11]}  Nf2 {[%clk 0:00:02]} 50. Rh8+ {[%clk 0:00:12]}  Ke7 {[%clk 0:00:02]} 51. Rg7+ {[%clk 0:00:11]}  Kf6 {[%clk 0:00:03]} 52. Rg6+ {[%clk 0:00:11]}  Ke7 {[%clk 0:00:04]} 53. Rh7+ {[%clk 0:00:12]}  Kf8 {[%clk 0:00:04]} 54. Rh8+ {[%clk 0:00:09]}  Ke7 {[%clk 0:00:04]} 1/2-1/2


[Site "https://www.chess.com"]

[Event "Titled Tuesday Blitz February 21 Late 2023"]
[White "Jarocka, Liwia"]
[Black "Petrovic, Aleksa"]
[WhiteFideId "21807558"]
[BlackFideId "967629"]
[WhiteElo "2225"]
[BlackElo "2332"]
[Result "0-1"]
[Round "07"]
[TimeControl "180+2"]
[Date "2023.02.21"]
[WhiteClock "0:01:49"]
[BlackClock "0:01:21"]

1. e4 {[%clk 0:03:00]}  c6 {[%clk 0:02:57]} 2. d4 {[%clk 0:03:00]}  d5 {[%clk 0:02:57]} 3. Nd2 {[%clk 0:03:00]}  dxe4 {[%clk 0:02:58]} 4. Nxe4 {[%clk 0:03:01]}  Bf5 {[%clk 0:02:57]} 5. Ng3 {[%clk 0:03:01]}  Bg6 {[%clk 0:02:57]} 6. h4 {[%clk 0:03:02]}  h6 {[%clk 0:02:58]} 7. Nf3 {[%clk 0:03:02]}  e6 {[%clk 0:02:58]} 8. h5 {[%clk 0:03:03]}  Bh7 {[%clk 0:02:58]} 9. Bd3 {[%clk 0:03:03]}  Bxd3 {[%clk 0:02:59]} 10. Qxd3 {[%clk 0:03:04]}  Nf6 {[%clk 0:02:59]} 11. Bd2 {[%clk 0:03:04]}  c5 {[%clk 0:02:59]} 12. O-O-O {[%clk 0:03:05]}  Nc6 {[%clk 0:02:59]} 13. Bc3 {[%clk 0:03:02]}  Qd5 {[%clk 0:02:57]} 14. Kb1 {[%clk 0:02:55]}  Rd8 {[%clk 0:02:54]} 15. Qb5 {[%clk 0:02:50]}  Be7 {[%clk 0:02:22]} 16. a3 {[%clk 0:02:40]}  c4 {[%clk 0:02:15]} 17. Qxd5 {[%clk 0:02:37]}  Nxd5 {[%clk 0:02:15]} 18. Ne2 {[%clk 0:02:33]}  b5 {[%clk 0:02:14]} 19. Rhe1 {[%clk 0:02:26]}  a5 {[%clk 0:02:12]} 20. Bd2 {[%clk 0:02:24]}  O-O {[%clk 0:02:09]} 21. c3 {[%clk 0:02:24]}  b4 {[%clk 0:02:06]} 22. cxb4 {[%clk 0:02:21]}  axb4 {[%clk 0:02:05]} 23. axb4 {[%clk 0:02:21]}  Ncxb4 {[%clk 0:02:00]} 24. Bxb4 {[%clk 0:02:12]}  Bxb4 {[%clk 0:01:58]} 25. Rh1 {[%clk 0:02:12]}  c3 {[%clk 0:01:52]} 26. bxc3 {[%clk 0:02:11]}  Bxc3 {[%clk 0:01:51]} 27. Nxc3 {[%clk 0:02:12]}  Nxc3+ {[%clk 0:01:51]} 28. Kc2 {[%clk 0:02:12]}  Nxd1 {[%clk 0:01:52]} 29. Rxd1 {[%clk 0:02:12]}  Rd5 {[%clk 0:01:52]} 30. Rb1 {[%clk 0:02:09]}  Rxh5 {[%clk 0:01:51]} 31. Rb7 {[%clk 0:02:08]}  Rf5 {[%clk 0:01:46]} 32. Kd3 {[%clk 0:02:07]}  Rd8 {[%clk 0:01:45]} 33. Ke4 {[%clk 0:02:06]}  Rf6 {[%clk 0:01:40]} 34. Ke3 {[%clk 0:02:05]}  Ra8 {[%clk 0:01:33]} 35. Ke4 {[%clk 0:02:03]}  Ra2 {[%clk 0:01:31]} 36. Ke3 {[%clk 0:02:02]}  g5 {[%clk 0:01:26]} 37. Rb3 {[%clk 0:01:54]}  Kg7 {[%clk 0:01:24]} 38. g4 {[%clk 0:01:52]}  Rf4 {[%clk 0:01:22]} 39. Ne5 {[%clk 0:01:52]}  Rfxf2 {[%clk 0:01:21]} 40. Rb7 {[%clk 0:01:49]} 0-1


[Site "https://www.chess.com"]

[Event "Titled Tuesday Blitz February 21 Late 2023"]
[White "Prieto Aranguren, Alain"]
[Black "CheckBits"]
[WhiteFideId "2268906"]
[WhiteElo "2258"]
[BlackElo "2452"]
[Result "1-0"]
[Round "07"]
[TimeControl "180+2"]
[Date "2023.02.21"]
[WhiteClock "0:00:46"]
[BlackClock "0:01:07"]

1. d4 {[%clk 0:03:00]}  e6 {[%clk 0:02:59]} 2. e4 {[%clk 0:02:59]}  d5 {[%clk 0:02:57]} 3. exd5 {[%clk 0:03:00]}  exd5 {[%clk 0:02:57]} 4. Bd3 {[%clk 0:02:58]}  Nf6 {[%clk 0:02:56]} 5. Nf3 {[%clk 0:02:59]}  Bg4 {[%clk 0:02:54]} 6. O-O {[%clk 0:02:59]}  Be7 {[%clk 0:02:54]} 7. c3 {[%clk 0:02:59]}  h6 {[%clk 0:02:52]} 8. Bf4 {[%clk 0:02:57]}  O-O {[%clk 0:02:51]} 9. Nbd2 {[%clk 0:02:57]}  Nbd7 {[%clk 0:02:50]} 10. Re1 {[%clk 0:02:56]}  Re8 {[%clk 0:02:47]} 11. Qc2 {[%clk 0:02:55]}  c5 {[%clk 0:02:41]} 12. dxc5 {[%clk 0:02:53]}  Nxc5 {[%clk 0:02:41]} 13. Nd4 {[%clk 0:02:53]}  Nxd3 {[%clk 0:02:39]} 14. Qxd3 {[%clk 0:02:53]}  a6 {[%clk 0:02:36]} 15. Re3 {[%clk 0:02:49]}  Bc5 {[%clk 0:02:32]} 16. Rae1 {[%clk 0:02:44]}  Rxe3 {[%clk 0:02:29]} 17. Rxe3 {[%clk 0:02:42]}  Qb6 {[%clk 0:02:29]} 18. N2b3 {[%clk 0:02:40]}  Rd8 {[%clk 0:02:17]} 19. Nxc5 {[%clk 0:02:31]}  Qxc5 {[%clk 0:02:16]} 20. Be5 {[%clk 0:02:30]}  Qb6 {[%clk 0:02:10]} 21. Rg3 {[%clk 0:02:20]}  Bh5 {[%clk 0:02:03]} 22. Nf5 {[%clk 0:02:12]}  Re8 {[%clk 0:01:32]} 23. Rxg7+ {[%clk 0:01:07]}  Kf8 {[%clk 0:01:32]} 24. Qg3 {[%clk 0:00:56]}  Qe6 {[%clk 0:01:10]} 25. Rg8+ {[%clk 0:00:47]}  Nxg8 {[%clk 0:01:07]} 26. Qg7# {[%clk 0:00:46]} 1-0


[Site "https://www.chess.com"]

[Event "Titled Tuesday Blitz February 21 Late 2023"]
[White "reevecanada"]
[Black "Smith, Garrett L"]
[BlackFideId "2024829"]
[WhiteElo "2441"]
[BlackElo "2047"]
[Result "0-1"]
[Round "07"]
[TimeControl "180+2"]
[Date "2023.02.21"]
[WhiteClock "0:00:03"]
[BlackClock "0:00:25"]

1. e4 {[%clk 0:00:39]}  c5 {[%clk 0:01:32]} 2. Nf3 {[%clk 0:00:36]}  Nc6 {[%clk 0:01:32]} 3. Bb5 {[%clk 0:00:35]}  e6 {[%clk 0:01:33]} 4. Bxc6 {[%clk 0:00:34]}  bxc6 {[%clk 0:01:34]} 5. O-O {[%clk 0:00:34]}  Ne7 {[%clk 0:01:34]} 6. d4 {[%clk 0:00:31]}  cxd4 {[%clk 0:01:33]} 7. Qxd4 {[%clk 0:00:32]}  Ng6 {[%clk 0:01:33]} 8. Bg5 {[%clk 0:00:31]}  f6 {[%clk 0:01:31]} 9. Be3 {[%clk 0:00:29]}  Be7 {[%clk 0:01:26]} 10. Nc3 {[%clk 0:00:29]}  O-O {[%clk 0:01:26]} 11. h4 {[%clk 0:00:28]}  Qc7 {[%clk 0:01:25]} 12. h5 {[%clk 0:00:28]}  Ne5 {[%clk 0:01:23]} 13. Qd1 {[%clk 0:00:27]}  Rb8 {[%clk 0:01:21]} 14. b3 {[%clk 0:00:24]}  Bb4 {[%clk 0:01:15]} 15. Na4 {[%clk 0:00:24]}  Ba6 {[%clk 0:01:11]} 16. c4 {[%clk 0:00:22]}  Rbd8 {[%clk 0:01:06]} 17. Bf4 {[%clk 0:00:21]}  Bd6 {[%clk 0:00:57]} 18. c5 {[%clk 0:00:20]}  Nxf3+ {[%clk 0:00:57]} 19. Qxf3 {[%clk 0:00:18]}  Bxf4 {[%clk 0:00:56]} 20. Rfd1 {[%clk 0:00:19]}  Qe5 {[%clk 0:00:55]} 21. g3 {[%clk 0:00:18]}  Bh6 {[%clk 0:00:55]} 22. Rac1 {[%clk 0:00:19]}  f5 {[%clk 0:00:54]} 23. Rc2 {[%clk 0:00:18]}  fxe4 {[%clk 0:00:54]} 24. Qg4 {[%clk 0:00:18]}  e3 {[%clk 0:00:53]} 25. f3 {[%clk 0:00:19]}  e2 {[%clk 0:00:52]} 26. Re1 {[%clk 0:00:19]}  Qe3+ {[%clk 0:00:51]} 27. Kg2 {[%clk 0:00:19]}  Rf7 {[%clk 0:00:47]} 28. Rc3 {[%clk 0:00:17]}  Qd2 {[%clk 0:00:47]} 29. Rcc1 {[%clk 0:00:18]}  Rdf8 {[%clk 0:00:46]} 30. f4 {[%clk 0:00:18]}  Bd3 {[%clk 0:00:44]} 31. Nc3 {[%clk 0:00:17]}  e5 {[%clk 0:00:42]} 32. Nxe2 {[%clk 0:00:13]}  Be4+ {[%clk 0:00:39]} 33. Kh3 {[%clk 0:00:12]}  Bf5 {[%clk 0:00:38]} 34. Rcd1 {[%clk 0:00:13]}  Bxg4+ {[%clk 0:00:38]} 35. Kxg4 {[%clk 0:00:13]}  Qe3 {[%clk 0:00:38]} 36. Ng1 {[%clk 0:00:13]}  Rxf4+ {[%clk 0:00:36]} 37. Kh3 {[%clk 0:00:12]}  Qf2 {[%clk 0:00:31]} 38. Re2 {[%clk 0:00:11]}  Qxc5 {[%clk 0:00:26]} 39. gxf4 {[%clk 0:00:07]}  Qc3+ {[%clk 0:00:26]} 40. Kh2 {[%clk 0:00:08]}  Bxf4+ {[%clk 0:00:25]} 41. Kh1 {[%clk 0:00:07]}  Qg3 {[%clk 0:00:25]} 42. Rde1 {[%clk 0:00:03]}  Rf5 {[%clk 0:00:25]} 43. Nf3 {[%clk 0:00:02]}  Rxh5+ {[%clk 0:00:25]} 44. Nh2 {[%clk 0:00:02]}  Rxh2+ {[%clk 0:00:25]} 45. Rxh2 {[%clk 0:00:03]}  Qxh2# {[%clk 0:00:25]} 0-1


[Site "https://www.chess.com"]

[Event "Titled Tuesday Blitz February 21 Late 2023"]
[White "Matsuura, Frederico"]
[Black "Adewumi, Tanitoluwa"]
[WhiteFideId "2107848"]
[BlackFideId "30966396"]
[WhiteElo "2244"]
[BlackElo "2283"]
[Result "1-0"]
[Round "07"]
[TimeControl "180+2"]
[Date "2023.02.21"]
[WhiteClock "0:01:09"]
[BlackClock "0:00:03"]

1. d4 {[%clk 0:03:00]}  Nf6 {[%clk 0:02:51]} 2. Bg5 {[%clk 0:02:59]}  e6 {[%clk 0:02:48]} 3. Nf3 {[%clk 0:02:59]}  h6 {[%clk 0:02:41]} 4. Bh4 {[%clk 0:02:58]}  Be7 {[%clk 0:02:24]} 5. e3 {[%clk 0:02:55]}  b6 {[%clk 0:02:19]} 6. c4 {[%clk 0:02:50]}  Bb7 {[%clk 0:02:17]} 7. Nc3 {[%clk 0:02:50]}  O-O {[%clk 0:02:12]} 8. Be2 {[%clk 0:02:48]}  d6 {[%clk 0:02:07]} 9. O-O {[%clk 0:02:47]}  Nbd7 {[%clk 0:02:06]} 10. Qc2 {[%clk 0:02:47]}  Re8 {[%clk 0:02:01]} 11. Rfd1 {[%clk 0:02:42]}  Qc8 {[%clk 0:01:57]} 12. b4 {[%clk 0:02:32]}  e5 {[%clk 0:01:50]} 13. d5 {[%clk 0:02:28]}  g6 {[%clk 0:01:44]} 14. Rac1 {[%clk 0:02:23]}  Nh7 {[%clk 0:01:22]} 15. Bxe7 {[%clk 0:02:21]}  Rxe7 {[%clk 0:00:55]} 16. Nd2 {[%clk 0:02:22]}  f5 {[%clk 0:00:55]} 17. Nb3 {[%clk 0:02:21]}  Rg7 {[%clk 0:00:51]} 18. c5 {[%clk 0:02:21]}  bxc5 {[%clk 0:00:45]} 19. bxc5 {[%clk 0:02:21]}  Ndf6 {[%clk 0:00:31]} 20. Nb5 {[%clk 0:02:13]}  Qd8 {[%clk 0:00:22]} 21. Na5 {[%clk 0:02:02]}  Bxd5 {[%clk 0:00:09]} 22. Rxd5 {[%clk 0:01:49]}  Nxd5 {[%clk 0:00:10]} 23. Bc4 {[%clk 0:01:48]}  dxc5 {[%clk 0:00:07]} 24. Rd1 {[%clk 0:01:44]}  Nf6 {[%clk 0:00:07]} 25. Nc3 {[%clk 0:01:37]}  Rd7 {[%clk 0:00:07]} 26. Nc6 {[%clk 0:01:37]}  Qe8 {[%clk 0:00:05]} 27. Nxd5 {[%clk 0:01:33]}  Nxd5 {[%clk 0:00:05]} 28. Rxd5 {[%clk 0:01:33]}  Rxd5 {[%clk 0:00:04]} 29. Bxd5+ {[%clk 0:01:33]}  Kg7 {[%clk 0:00:05]} 30. Qc3 {[%clk 0:01:33]}  a5 {[%clk 0:00:03]} 31. Nxe5 {[%clk 0:01:32]}  Ra6 {[%clk 0:00:04]} 32. Nd7+ {[%clk 0:01:27]}  Kh7 {[%clk 0:00:02]} 33. Nf6+ {[%clk 0:01:26]}  Rxf6 {[%clk 0:00:03]} 34. Qxf6 {[%clk 0:01:27]}  Qb8 {[%clk 0:00:02]} 35. Qf7+ {[%clk 0:01:25]}  Kh8 {[%clk 0:00:03]} 36. Qf6+ {[%clk 0:01:24]}  Kh7 {[%clk 0:00:03]} 37. Qf7+ {[%clk 0:01:25]}  Kh8 {[%clk 0:00:03]} 38. h4 {[%clk 0:01:25]}  c6 {[%clk 0:00:03]} 39. Qf6+ {[%clk 0:01:22]}  Kh7 {[%clk 0:00:03]} 40. Qf7+ {[%clk 0:01:23]}  Kh8 {[%clk 0:00:04]} 41. Be6 {[%clk 0:01:23]}  Qb1+ {[%clk 0:00:03]} 42. Kh2 {[%clk 0:01:23]}  Qb8+ {[%clk 0:00:04]} 43. f4 {[%clk 0:01:22]}  Qd8 {[%clk 0:00:04]} 44. Kh3 {[%clk 0:01:18]}  g5 {[%clk 0:00:03]} 45. Qg6 {[%clk 0:01:14]}  g4+ {[%clk 0:00:03]} 46. Kg3 {[%clk 0:01:13]}  Qf8 {[%clk 0:00:03]} 47. Bxf5 {[%clk 0:01:12]}  Qg7 {[%clk 0:00:03]} 48. Qe8+ {[%clk 0:01:10]}  Qg8 {[%clk 0:00:03]} 49. Qe5+ {[%clk 0:01:10]}  Qg7 {[%clk 0:00:03]} 50. Qxc5 {[%clk 0:01:10]}  Qa1 {[%clk 0:00:03]} 51. Qf8# {[%clk 0:01:09]} 1-0


[Site "https://www.chess.com"]

[Event "Titled Tuesday Blitz February 21 Late 2023"]
[White "Kovacs, Klara"]
[Black "Novikov, Evgenij"]
[WhiteFideId "733210"]
[BlackFideId "4125380"]
[WhiteElo "2121"]
[BlackElo "2276"]
[Result "1-0"]
[Round "07"]
[TimeControl "180+2"]
[Date "2023.02.21"]
[WhiteClock "0:01:50"]
[BlackClock "0:00:08"]

1. d4 {[%clk 0:02:39]}  d5 {[%clk 0:02:59]} 2. Nf3 {[%clk 0:02:40]}  e6 {[%clk 0:02:59]} 3. g3 {[%clk 0:02:40]}  b5 {[%clk 0:02:59]} 4. a4 {[%clk 0:02:38]}  b4 {[%clk 0:02:59]} 5. c4 {[%clk 0:02:39]}  a5 {[%clk 0:02:56]} 6. cxd5 {[%clk 0:02:37]}  exd5 {[%clk 0:02:56]} 7. Bg2 {[%clk 0:02:38]}  c6 {[%clk 0:02:54]} 8. O-O {[%clk 0:02:35]}  Bd6 {[%clk 0:02:53]} 9. Nbd2 {[%clk 0:02:35]}  Nf6 {[%clk 0:02:53]} 10. e4 {[%clk 0:02:34]}  dxe4 {[%clk 0:02:41]} 11. Ng5 {[%clk 0:02:33]}  O-O {[%clk 0:02:41]} 12. Ndxe4 {[%clk 0:02:31]}  Nxe4 {[%clk 0:02:26]} 13. Nxe4 {[%clk 0:02:31]}  Be6 {[%clk 0:02:23]} 14. Nxd6 {[%clk 0:02:26]}  Qxd6 {[%clk 0:02:24]} 15. Bf4 {[%clk 0:02:27]}  Qd7 {[%clk 0:02:22]} 16. Rc1 {[%clk 0:02:25]}  Rd8 {[%clk 0:02:10]} 17. Be3 {[%clk 0:02:19]}  Bd5 {[%clk 0:02:04]} 18. Bxd5 {[%clk 0:02:14]}  cxd5 {[%clk 0:02:02]} 19. Rc5 {[%clk 0:02:14]}  Nc6 {[%clk 0:01:36]} 20. Qf3 {[%clk 0:02:13]}  Ne7 {[%clk 0:01:31]} 21. Rfc1 {[%clk 0:02:12]}  Qxa4 {[%clk 0:01:23]} 22. Rc7 {[%clk 0:02:09]}  Re8 {[%clk 0:01:17]} 23. Bg5 {[%clk 0:01:58]}  Rac8 {[%clk 0:00:22]} 24. Bxe7 {[%clk 0:01:54]}  Rxc7 {[%clk 0:00:23]} 25. Rxc7 {[%clk 0:01:54]}  Qa1+ {[%clk 0:00:23]} 26. Kg2 {[%clk 0:01:54]}  Qxb2 {[%clk 0:00:23]} 27. Bc5 {[%clk 0:01:52]}  f6 {[%clk 0:00:17]} 28. Qxd5+ {[%clk 0:01:52]}  Kh8 {[%clk 0:00:17]} 29. Qf7 {[%clk 0:01:52]}  Rg8 {[%clk 0:00:17]} 30. Bf8 {[%clk 0:01:51]}  Qxd4 {[%clk 0:00:07]} 31. Bxg7+ {[%clk 0:01:50]}  Rxg7 {[%clk 0:00:08]} 32. Qxg7# {[%clk 0:01:50]} 1-0


[Site "https://www.chess.com"]

[Event "Titled Tuesday Blitz February 21 Late 2023"]
[White "Lucassen, Mickey"]
[Black "Karwowski, Kacper"]
[WhiteFideId "12919110"]
[BlackFideId "1126032"]
[WhiteElo "2023"]
[BlackElo "2164"]
[Result "1-0"]
[Round "07"]
[TimeControl "180+2"]
[Date "2023.02.21"]
[WhiteClock "0:00:18"]
[BlackClock "0:00:04"]

1. e4 {[%clk 0:03:00]}  d6 {[%clk 0:02:58]} 2. d4 {[%clk 0:02:58]}  Nf6 {[%clk 0:02:58]} 3. Bd3 {[%clk 0:02:56]}  g6 {[%clk 0:02:56]} 4. Nf3 {[%clk 0:02:56]}  Nbd7 {[%clk 0:02:49]} 5. O-O {[%clk 0:02:55]}  Bg7 {[%clk 0:02:44]} 6. Re1 {[%clk 0:02:54]}  e5 {[%clk 0:02:43]} 7. c3 {[%clk 0:02:53]}  O-O {[%clk 0:02:43]} 8. h3 {[%clk 0:02:52]}  Re8 {[%clk 0:02:42]} 9. Nbd2 {[%clk 0:02:47]}  b6 {[%clk 0:02:41]} 10. a4 {[%clk 0:02:47]}  Bb7 {[%clk 0:02:41]} 11. a5 {[%clk 0:02:45]}  Rb8 {[%clk 0:02:21]} 12. Qb3 {[%clk 0:02:38]}  Re7 {[%clk 0:01:42]} 13. Qc2 {[%clk 0:02:12]}  Qe8 {[%clk 0:01:39]} 14. b4 {[%clk 0:02:02]}  h6 {[%clk 0:01:38]} 15. Bb2 {[%clk 0:02:01]}  Kh7 {[%clk 0:01:33]} 16. dxe5 {[%clk 0:01:58]}  Nxe5 {[%clk 0:01:32]} 17. Nxe5 {[%clk 0:01:58]}  Rxe5 {[%clk 0:01:32]} 18. c4 {[%clk 0:01:45]}  Re7 {[%clk 0:01:27]} 19. Re2 {[%clk 0:01:37]}  Nh5 {[%clk 0:01:22]} 20. Bxg7 {[%clk 0:01:37]}  Kxg7 {[%clk 0:01:23]} 21. g3 {[%clk 0:01:34]}  Bc8 {[%clk 0:01:21]} 22. Kg2 {[%clk 0:01:27]}  Nf6 {[%clk 0:01:04]} 23. axb6 {[%clk 0:01:25]}  axb6 {[%clk 0:01:04]} 24. Nb3 {[%clk 0:01:10]}  Bb7 {[%clk 0:01:01]} 25. f3 {[%clk 0:01:07]}  Re5 {[%clk 0:00:54]} 26. Qc3 {[%clk 0:01:04]}  Qe7 {[%clk 0:00:51]} 27. Ra7 {[%clk 0:00:52]}  Kh7 {[%clk 0:00:46]} 28. Kh2 {[%clk 0:00:43]}  Bc6 {[%clk 0:00:38]} 29. Nd4 {[%clk 0:00:42]}  Be8 {[%clk 0:00:31]} 30. Rea2 {[%clk 0:00:39]}  c5 {[%clk 0:00:23]} 31. Rxe7 {[%clk 0:00:33]}  cxd4 {[%clk 0:00:21]} 32. Qxd4 {[%clk 0:00:33]}  Rxe7 {[%clk 0:00:21]} 33. Qxf6 {[%clk 0:00:33]}  Rbb7 {[%clk 0:00:21]} 34. Ra8 {[%clk 0:00:30]}  b5 {[%clk 0:00:16]} 35. cxb5 {[%clk 0:00:28]}  d5 {[%clk 0:00:16]} 36. e5 {[%clk 0:00:25]}  Rbc7 {[%clk 0:00:15]} 37. b6 {[%clk 0:00:22]}  Rb7 {[%clk 0:00:14]} 38. Bb5 {[%clk 0:00:20]}  d4 {[%clk 0:00:06]} 39. Rxe8 {[%clk 0:00:18]}  Rxe8 {[%clk 0:00:05]} 40. Bxe8 {[%clk 0:00:19]}  d3 {[%clk 0:00:05]} 41. Bxf7 {[%clk 0:00:18]}  d2 {[%clk 0:00:03]} 42. Qxg6+ {[%clk 0:00:18]}  Kh8 {[%clk 0:00:04]} 43. Qxh6# {[%clk 0:00:18]} 1-0


[Site "https://www.chess.com"]